Workbook

Sheet Instructions
F1: Financement des crédits d’impôt remboursables à la RS&DE
Q2: Exercice financier débutant du 1er juin 2014 au 1er décembre 2014
A3: DEMANDE DE GARANTIE / PRÊT
A4: Instructions
A6: Veuillez remplir le présent formulaire électronique « Demande de garantie / Prêt », qui comprend les onglets « Renseignements généraux – à compléter », « Année 1 – à compléter » et « Année 2 – à compléter », à l’aide du logiciel Microsoft Excel et le faire parvenir à Investissement Québec. Assurez-vous de répondre à toutes les questions et de fournir tous les renseignements. L’onglet « Détail du calcul » vous permet de voir la façon dont les crédits d’impôt sont calculés à l’aide des renseignements soumis. Il ne nécessite aucune entrée de données. La demande de financement couvre une période maximale de deux ans : deux formulaires ont donc été prévus à cet effet. Les champs à remplir dans chaque onglet du formulaire électronique sont en jaune. Les lignes du formulaire font référence aux lignes de la déclaration de revenus des sociétés (T2 et CO-17). Les zones de calcul laissées en blanc sont automatisées grâce aux fonctionnalités de l’outil. Ces calculs sont fournis à titre indicatif seulement et n’engagent nullement Investissement Québec. Le montant minimal du prêt accordé est de 50 000 $ ou de 62 500 $ pour une demande de garantie de prêt. Des bulles d’information sont accessibles lorsque des précisions sont nécessaires. Un triangle rouge dans la cellule indique la présence d’une bulle d’information; il suffit d’en approcher le curseur pour l'afficher. Vous pouvez consulter le document T4088 – Guide pour le formulaire T661 Demande pour les dépenses de recherche scientifique et développement expérimental (RS&DE) sur le site de l’Agence du revenu du Canada (l’« ARC ») pour vous aider à remplir le formulaire.
A24: Documents complémentaires à fournir Les documents complémentaires suivants sont nécessaires à l’analyse de votre demande et doivent être acheminés au centre d’affaires d’Investissement Québec de votre région : A) s’il s’agit d’une première demande de crédits d’impôt RS&DE, veuillez obtenir une opinion sur l’admissibilité des projets voir l’Examen préliminaire des projets (EPP) dans les services consultatifs offerts par l’Agence du revenu du Canada au www.arc.gc.ca/rsde); B) le formulaire « Autorisation d’échange de renseignements avec l’Agence du revenu du Canada (annexe B) », obtenu auprès d’Investissement Québec, dûment rempli et signé; C) le formulaire « Déclaration de l’entreprise » obtenu auprès d’Investissement Québec, dûment rempli et signé; D) une description du contenu scientifique de chaque projet de RS&DE comportant notamment (cette description doit compléter la section 1.5 de l’onglet « Renseignements généraux ») : 1) le titre et les principaux objectifs scientifiques ou technologiques du projet RS&DE; 2) le calendrier de réalisation du projet (principales étapes/activités et niveau d’avancement correspondant); 3) la nature des incertitudes scientifiques ou technologiques que le projet vise à résoudre – incertitudes qui ne pouvaient pas être éliminées par la pratique courante; 4) la contribution à l’avancement technologique réalisée à la suite des travaux (nature du produit ou procédé) et l’impact sur les pratiques industrielles courantes et celles de votre entreprise; 5) une explication du contenu scientifique et technologique du projet pour surmonter les incertitudes scientifiques et technologiques; 6) la liste et les qualifications (titre du poste et compétence ou expérience) des personnes participant au projet RS&DE ainsi que le nom du responsable scientifique ou technique avec une copie de son curriculum vitæ; E) les états financiers des deux (2) derniers exercices financiers (sinon le bilan d’ouverture) et les derniers états financiers internes disponibles accompagnés de la liste chronologique (l’âge) des comptes clients et des comptes fournisseurs à cette même date; F) une copie complète des trois (3) dernières déclarations de revenus provinciales et fédérales et des avis de cotisation s’y rapportant; G) le plan d’affaires ou tout document contenant une description de l’entreprise (produits, marchés, concurrence, etc.). Pour connaître les éléments essentiels d’un plan d’affaires, veuillez consulter le site d’Investissement Québec au http://www.investquebec.com/documents/qc/produitsfinanciers/PlanAffaires_fr.pdf H) les états prévisionnels des résultats ainsi que les budgets de caisse mensuels pour l’exercice financier en cours et le suivant; I) une copie de toute correspondance relative au présent projet RS&DE avec l’Agence du revenu du Canada et Revenu Québec; J) une copie des aides gouvernementales ou non gouvernementales (contribution financière non remboursable) liées au projet RS&DE; K) tout document pouvant faciliter l’évaluation de la présente demande, s’il y a lieu. Documents complémentaires à fournir – Demande de garantie Dans le cadre d’une demande de garantie, le formulaire « Déclaration du prêteur (annexe A) », obtenu auprès d’Investissement Québec et nécessaire à l’analyse de votre demande, doit être transmis au Prêteur, qui le remplira. Par la suite, l’original de ce document doit être acheminé à Investissement Québec.
C112: Numéro sans frais au Québec : 1 866 870-0437

Sheet Renseignements Gén.à compléter
Q1: Financement des crédits d’impôt remboursables à la RS&DE
Q2: Exercice financier débutant du 1er juin 2014 au 1er décembre 2014
A3: DEMANDE DE GARANTIE / PRÊT
A4: Renseignements généraux
A6: 1.0 | B6: Est-ce que l’entreprise a pris connaissance de l’onglet « Instructions » ? | S6: 0
A7: 1.1 | B7: IDENTIFICATION
B9: Raison sociale de l’entreprise requérante :
B10: NEQ (numéro d’entreprise du Québec) :
B12: Adresse du siège social :
B16: Adresse du bureau principal
B17: (si différente de celle du
B18: siège social) :
B20: Personne avec qui Investissement Québec devra communiquer :
B22: Titre : | K22: Téléphone :
K23: Télécopieur :
K24: Courrier électronique :
B26: Adresse de la personne-ressource
B27: (si différente de celle du siège social) :
B30: Nombre d’employés avant le projet : | M30: après le projet :
A32: 1.2 | B32: RENSEIGNEMENTS SUR L’ENTREPRISE
B34: Numéro de compte ou numéro d’entreprise
B35: auprès de l’Agence du revenu du Canada :
G36: (voir « Déclaration de revenus des sociétés », T2)
B37: Numéro d’identification auprès de
B38: Revenu Québec :
G39: (voir « Déclaration de revenus des sociétés », CO-17)
B41: Date d’incorporation : | M41: Date du début des activités :
G42: (aaaa-mm-jj) | N42: (aaaa-mm-jj)
AM43: Oui
B44: L’entreprise est-elle une société privée sous contrôle canadien (SPCC) ? | S44: 0 | AM44: Non
B45: (au sens de la Loi de l’impôt sur le revenu du Canada et de la Loi sur les impôts du Québec)
B46: L’entreprise est-elle une société publique sous contrôle canadien ? | S46: 0
B48: L’entreprise est-elle associée (au sens de la Loi de l’impôt sur le revenu du Canada et de la Loi sur les impôts du Québec) à d’autres entreprises ? | S48: 0
B49: (le cas échéant, veuillez annexer la liste et l’organigramme à votre demande)
B51: L’entreprise a-t-elle des arrérages à quelque titre que ce soit envers l’Agence | S51: 0
B52: du revenu du Canada ou Revenu Québec ?
B54: L’entreprise est-elle redevable à Développement économique Canada (DEC) | S54: 0
B55: ou à d’autres organismes fédéraux ?
B57: Existe-t-il un litige ou un avis d’opposition en cours auprès de l’Agence | S57: 0
B58: du revenu du Canada ou de Revenu Québec ?
B59: (le cas échéant, veuillez annexer les détails à votre demande)
A62: 1.3 | B62: RENSEIGNEMENTS SUR L’INSTITUTION FINANCIÈRE
B64: Nom du prêteur (raison sociale) :
B66: Adresse (succursale) : | L66: Numéro de transit :
B70: Nom de la personne responsable du compte à l’institution financière :
B72: Téléphone : | K72: Télécopieur :
A74: 1.4 | B74: HISTORIQUE D’ADMISSIBILITÉ DES CRÉDITS D'IMPÔT RS&DE
C76: Commentaires sur l’historique d’encaissement
C78: Inscrire l’exercice financier le plus récent pour lequel une vérification scientifique a eu lieu au cours des cinq dernières années
C79: Exercice financier : | I79: Conclusions : | S79: 0
D80: (aaaa-mm-jj)
C81: Inscrire l’exercice financier le plus récent pour lequel une vérification financière a eu lieu au cours des cinq dernières années
C82: Exercice financier : | I82: Conclusions : | S82: 1
D83: (aaaa-mm-jj)
C84: Historique des trois dernières années
C86: Année | D86: Palier | G86: Montant réclamé | J86: Date de dépôt de la réclamation RS&DE | L86: Montant reçu | O86: Date
D88: Fédéral
D89: Provincial
D90: Fédéral
D91: Provincial
D92: Fédéral
D93: Provincial
A95: 1.5 | B95: PROJET RS&DE
C97: Une description plus détaillée pour chaque projet peut être jointe, si disponible (voir « Documents complémentaires à fournir » du point D de l'onglet « Instructions »).
C99: Projets | D99: Titre du projet et brève description (maximum de cinq projets) | N99: Date de début | O99: Date de fin réelle ou prévue
C100: 1
C103: 2
C106: 3
C109: 4
C112: 5
A118: 1.6 | B118: ACTIONNARIAT ET DIRECTION
B120: Prénom, nom et adresse | G120: Titre ou fonction dans l’entreprise (si actionnaire mais non à l’emploi de l'entreprise, inscrire s. o.) | K120: Expérience dans l’industrie (nbre d’années) | M120: Lien avec l’entreprise (nbre d’années) | O120: % d’actions avec droit de vote | Q120: CV joint
G122: Préciser
G124: Préciser
G126: Préciser
G128: Préciser
G130: Préciser
G132: Préciser
G134: Préciser
G136: Préciser
G138: Préciser
G140: Préciser
N141: Total : | O141: =IF(SUM(O121:P140)=0,"",SUM(O121:P140)) -> 

Sheet Année 1 - à compléter
N1: Financement des crédits d’impôt remboursables à la RS&DE
N2: Exercice financier débutant du 1er juin 2014 au 1er décembre 2014
I3: DEMANDE DE GARANTIE / PRÊT
I4: Calculs relatifs aux crédits d’impôt à financer (année 1)
U6: Taux applicables (Québec) | AA6: Oui
B7: 2.0 ADMISSIBILITÉ AUX CRÉDITS D’IMPÔT REMBOURSABLES À LA RS&DE | R7: =IF(AND(MONTH(DATE(YEAR(RCalculDateDebut1),2,29)) =2,MONTH(RCalculDateDebut1)<3),TRUE,FALSE) -> TRUE | U7: aux dépenses admissibles nettes n’excédant pas 3 M$ | AA7: Non
L8: (aaaa-mm-jj) | R8: =IF(AND(MONTH(DATE(YEAR(RCalculDateFin1),2,29)) =2,MONTH(RCalculDateFin1)>2),TRUE,FALSE) -> FALSE | U8: (en fonction des actifs indiqués dans les états financiers)
C9: Exercice à financer : | J9: Date de début : | M9: =" Attention :" -> Attention : | R9: =RCalculDateFin1-RCalculDateDebut1 -> 0 | S9: =IF(OR(R7=TRUE,R8=TRUE),365,364) -> 365 | U9: Dépenses admissibles nettes
C10: (débutant du 1er juin 2014 au 1er décembre 2014) | U10: (à titre indicatif)
J11: Date de fin : | M11: =" ne représente pas 12 mois" -> ne représente pas 12 mois | V11: 1 | W11: 0.3
V12: 25000000 | W12: 0.3
B13: 2.1 ADMISSIBILITÉ AUX CRÉDITS D’IMPÔT REMBOURSABLES À LA RS&DE | V13: 50000000 | W13: 0.3
V14: 55000000 | W14: 0.268
J15: L’entreprise requérante est une société sous contrôle canadien | R15: 3 | V15: 60000000 | W15: 0.236
J16: (aux fins de la Loi sur les impôts du Québec) | V16: 65000000 | W16: 0.204
V17: 70000000 | W17: 0.172
V18: 75000000 | W18: 0.14
C19: Actif aux états financiers (année précédant l’exercice financier) : | M19: $ | R19: =ROUND(0.375-((MAX(25000000,(MIN(50000000,L19)))-25000000)*0.2)/25000000,4) -> 0.175 | U19: * Le taux applicable aux dépenses admissibles excédant
H21: En date du : | U21: la limite de 3 000 000 $ est de 14%
D22: S’il s’agit d’une entreprise en démarrage, inscrire 1 $ | L22: =L8 -> (aaaa-mm-jj)
J23: =IF(RONindicateurCorporationControlCanadienQuebec1=2,"Vous avez indiqué que vous n'étiez pas une société à contrôle canadien ci-dessus, donc la réponse doit être non ci-dessous",0) -> 0
R25: =RCalculDateFin1-DATE(2008,3,13) -> -39520
C26: La société est une société privée sous contrôle canadien tout au long de l’année | R26: =IF(SaisiTerminer,IF(RCalculDateFin1>DATE(2008,3,13),IF(RCalculDateFin1>DATE(2009,3,13),3000000,ROUND(2000000+((RCalculDateFin1-DATE(2008,3,13))*(1000000/365)),0)),2000000),3000000) -> 3000000
C27: d’imposition, dont le revenu imposable et le capital imposable pour l’année précédant
C28: l’exercice financier étaient respectivement inférieurs à 800 000 $ et 50 000 000 $
C29: (y compris les sociétés associées, s’il y a lieu).
R30: =ROUND(0.3-((MAX(50000000,(MIN(75000000,L19)))-50000000)*0.4)/62500000,4) -> 0.14
J31: Revenu imposable selon la déclaration de revenus | K31: : | M31: $
J32: (année précédant l’exercice à financer)
J34: Capital imposable | K34: : | M34: $
J35: (année précédant l’exercice à financer)
J37: En date du | K37: : | L37: =IF(R37=2,"",IF(L21="","",L21)) ->  | R37: 3
L38: =L8 -> (aaaa-mm-jj) | R38: 800000
R39: 50000000
R41: =500000*((40000000-(RcapitaleImposableCanada1-10000000))/40000000) -> 625000
B42: 2.2 COÛT DU PROJET RS&DE (en $) | S42: =IF(OR(AND(L31<>"",L31<>1,L31<>0),AND(L19<>"",L19<>1,L19<>0)),TRUE,FALSE) -> FALSE | T42: Revenus imposables saisis (Année précédente existente)
L44: Exercice financier
J45: Date de début : | L45: =RCalculDateDebut1 -> 00:00:00
J46: Date de fin : | L46: =RCalculDateFin1 -> 00:00:00
J47: (nbre de mois) | L47: =IF(ISERROR(+(L46-L45)/30.42),"",+(L46-L45)/30.42) -> 0
C49: Salaires des employés, sauf employés déterminés (ligne 300 du T661)
C50: Salaires des employés déterminés (ligne 305 du T661)
C51: Salaires des employés de soutien (aux fins du Québec) (ligne 43 du RD-222)
C52: Coûts des matériaux consommés et transformés (lignes 320 et 325 du T661)
C53: Contrats (sous-traitants) sans lien de dépendance (ligne 340 du T661)
C54: Contrats (sous-traitants) avec lien de dépendance (ligne 345 du T661)
C55: Coûts de location du matériel utilisé avant le 1er janvier 2014 (Ligne 350 et 355 de la T661)
C56: Frais généraux et autres dépenses, inscrire 0 si vous utilisez la méthode de remplacement (ligne 360 du T661)
C57: Paiements faits à des tiers (ligne 370 du T661)
C58: Dépenses en capital pour les biens amortissables prêts à être mis en service avant le 1er janvier 2014 (ligne 390 de la T661)
C61: Moins : | S61: =IF(AND(L31<R41,L34<40000000),FALSE,TRUE) -> FALSE | T61: Si un plafond est applicable
C62: Toute aide gouvernementale et non gouvernementale relative aux dépenses RS&DE
C63: Bonis et avantages imposables relatifs aux salaires des employés RS&DE (ligne 812 du T661)
C64: Toute aide relative aux dépenses en capital RS&DE
C65: Réduction du salaire admissible lors d'un cumul de crédits d'impôt au Québec, ex. : CDAE
R66: =IF(($L34-10000000)>0,$L34-10000000,0) -> 0
C67: Impôt fédéral à payer, déduction faite des acomptes provisionnels | J67: =SUM(J51:J66) -> 0 | R67: =ROUND($R66/(R39-10000000),4) -> 0
C68: Impôt à payer au Québec, déduction faite des acomptes provisionnels
C72: ='Détail du calcul'!C76:I76 -> Crédits d’impôt à la RS&DE remboursables au Québec : | L72: ='Détail du calcul'!L76 -> 0
C74: ='Détail du calcul'!C144 -> Crédits d’impôt à la RS&DE remboursables au fédéral : | L74: ='Détail du calcul'!L144 -> 
J76: TOTAL* | L76: =L74+L72 -> 
B77: * Veuillez prendre note que les définitions ont été simplifiées à des fins de compréhension des utilisateurs et peuvent ainsi ne pas refléter toutes les situations particulières. Le résultat final du calcul des crédits d’impôt RS&DE acceptés par RQ et l'ARC pourrait différer de ce montant en raison de situations particulières. Ces calculs sont fournis à titre indicatif seulement et n’engagent nullement Investissement Québec. Investissement Québec pourrait faire des ajustements si nécessaire.
S80: =IF(AND(L9<>"",L11<>""),TRUE,FALSE) -> FALSE | T80: Si des dates ont été saisies
S124: =#REF!+#REF! -> 
R128: =IF(SaisiTerminer,IF(DateChevauch1,S133,S134),S132) -> 00:00:00
S189: =#REF!-#REF! ->  | T189: Restant pour dépenses en capital

Sheet Année 2 - à compléter
N1: Financement des crédits d’impôt remboursables à la RS&DE
N2: Exercice financier débutant du 1er juin 2014 au 1er décembre 2014
I3: DEMANDE DE GARANTIE / PRÊT
I4: Calculs relatifs aux crédits d’impôt à financer (année 2)
T6: Taux applicables (Québec) | Z6: Oui
B7: 2.0 ADMISSIBILITÉ AUX CRÉDITS D’IMPÔT REMBOURSABLES À LA RS&DE | Q7: =IF(AND(MONTH(DATE(YEAR(RCalculDateDebut1),2,29)) =2,MONTH(RCalculDateDebut1)<3),TRUE,FALSE) -> TRUE | T7: aux dépenses admissibles nettes n’excédant pas 3 M$ | Z7: Non
L8: (aaaa-mm-jj) | Q8: =IF(AND(MONTH(DATE(YEAR(RCalculDateFin1),2,29)) =2,MONTH(RCalculDateFin1)>2),TRUE,FALSE) -> FALSE | T8: (en fonction des actifs indiqués dans les états financiers)
C9: Exercice à financer : | J9: Date de début : | M9: =" Attention :" -> Attention : | Q9: =RCalculDateFin1-RCalculDateDebut1 -> 0 | R9: =IF(OR(Q7=TRUE,Q8=TRUE),365,364) -> 365 | T9: Dépenses admissibles nettes
C10: (débutant du 1er juin 2014 au 1er décembre 2014) | T10: (à titre indicatif)
J11: Date de fin : | M11: =" ne représente pas 12 mois" -> ne représente pas 12 mois | U11: 1 | V11: 0.3
U12: 25000000 | V12: 0.3
B13: 2.1 ADMISSIBILITÉ AUX CRÉDITS D’IMPÔT REMBOURSABLES À LA RS&DE | U13: 50000000 | V13: 0.3
U14: 55000000 | V14: 0.268
J15: L’entreprise requérante est une société sous contrôle canadien | Q15: 3 | U15: 60000000 | V15: 0.236
J16: (aux fins de la Loi sur les impôts du Québec) | U16: 65000000 | V16: 0.204
U17: 70000000 | V17: 0.172
U18: 75000000 | V18: 0.14
C19: Actif aux états financiers (année précédant l’exercice financier) : | M19: $ | Q19: =ROUND(0.375-((MAX(25000000,(MIN(50000000,L19)))-25000000)*0.2)/25000000,4) -> 0.175 | T19: * Le taux applicable aux dépenses admissibles excédant
H21: En date du : | T21: la limite de 3 000 000 $ est de 14%
D22: S’il s’agit d’une entreprise en démarrage, inscrire 1 $ | L22: =L8 -> (aaaa-mm-jj)
J23: =IF(RONindicateurCorporationControlCanadienQuebec1=2,"Vous avez indiqué que vous n'étiez pas une société à contrôle canadien ci-dessus, donc la réponse doit être non ci-dessous",0) -> 0
Q25: =RCalculDateFin1-DATE(2008,3,13) -> -39520
C26: La société est une société privée sous contrôle canadien tout au long de l’année | Q26: =IF(SaisiTerminer,IF(RCalculDateFin1>DATE(2008,3,13),IF(RCalculDateFin1>DATE(2009,3,13),3000000,ROUND(2000000+((RCalculDateFin1-DATE(2008,3,13))*(1000000/365)),0)),2000000),3000000) -> 3000000
C27: d’imposition, dont le revenu imposable et le capital imposable pour l’année précédant
C28: l’exercice financier étaient respectivement inférieurs à 800 000 $ et 50 000 000 $
C29: (y compris les sociétés associées, s’il y a lieu).
Q30: =ROUND(0.3-((MAX(50000000,(MIN(75000000,L19)))-50000000)*0.4)/62500000,4) -> 0.14
J31: Revenu imposable selon la déclaration de revenus | K31: : | M31: $
J32: (année précédant l’exercice à financer)
J34: Capital imposable | K34: : | M34: $
J35: (année précédant l’exercice à financer)
J37: En date du | K37: : | L37: =IF(Q37=2,"",IF(L21="","",L21)) ->  | Q37: 3
L38: =L8 -> (aaaa-mm-jj) | Q38: 800000
Q39: 50000000
Q41: =500000*((40000000-(RcapitaleImposableCanada1-10000000))/40000000) -> 625000
B42: 2.2 COÛT DU PROJET RS&DE (en $) | R42: =IF(OR(AND(L31<>"",L31<>1,L31<>0),AND(L19<>"",L19<>1,L19<>0)),TRUE,FALSE) -> FALSE | S42: Revenus imposables saisis (Année précédente existente)
L44: Exercice financier
J45: Date de début : | L45: =RCalculDateDebut1 -> 00:00:00
J46: Date de fin : | L46: =RCalculDateFin1 -> 00:00:00
J47: (nbre de mois) | L47: =IF(ISERROR(+(L46-L45)/30.42),"",+(L46-L45)/30.42) -> 0
C49: Salaires des employés, sauf employés déterminés (ligne 300 du T661)
C50: Salaires des employés déterminés (ligne 305 du T661)
C51: Salaires des employés de soutien (aux fins du Québec) (ligne 43 du RD-222)
C52: Coûts des matériaux consommés et transformés (lignes 320 et 325 du T661)
C53: Contrats (sous-traitants) sans lien de dépendance (ligne 340 du T661)
C54: Contrats (sous-traitants) avec lien de dépendance (ligne 345 du T661)
C55: Coûts de location du matériel utilisé avant le 1er janvier 2014 (Ligne 350 et 355 de la T661)
C56: Frais généraux et autres dépenses, inscrire 0 si vous utilisez la méthode de remplacement (ligne 360 du T661)
C57: Paiements faits à des tiers (ligne 370 du T661)
C58: Dépenses en capital pour les biens amortissables prêts à être mis en service avant le 1er janvier 2014 (ligne 390 de la T661)
C61: Moins : | R61: =IF(AND(L31<Q41,L34<40000000),FALSE,TRUE) -> FALSE | S61: Si un plafond est applicable
C62: Toute aide gouvernementale et non gouvernementale relative aux dépenses RS&DE
C63: Bonis et avantages imposables relatifs aux salaires des employés RS&DE (ligne 812 duT661)
C64: Toute aide relative aux dépenses en capital RS&DE
C65: Réduction du salaire admissible lors d'un cumul de crédits d'impôt au Québec, ex. : CDAE
Q66: =IF(($L34-10000000)>0,$L34-10000000,0) -> 0
C67: Impôt fédéral à payer, déduction faite des acomptes provisionnels | J67: =SUM(J51:J66) -> 0 | Q67: =ROUND($Q66/(Q39-10000000),4) -> 0
C68: Impôt à payer au Québec, déduction faite des acomptes provisionnels
C72: ='Détail du calcul'!C76:I76 -> Crédits d’impôt à la RS&DE remboursables au Québec : | L72: ='Détail du calcul'!O76 -> 0
C74: ='Détail du calcul'!C144 -> Crédits d’impôt à la RS&DE remboursables au fédéral : | L74: ='Détail du calcul'!O144 -> 
J76: TOTAL* | L76: =L74+L72 -> 
B77: * Veuillez prendre note que les définitions ont été simplifiées à des fins de compréhension des utilisateurs et peuvent ainsi ne pas refléter toutes les situations particulières. Le résultat final du calcul des crédits d’impôt RS&DE acceptés par RQ et l'ARC pourrait différer de ce montant en raison de situations particulières. Ces calculs sont fournis à titre indicatif seulement et n’engagent nullement Investissement Québec. Investissement Québec pourrait faire des ajustements si nécessaire.
R80: =IF(AND(L9<>"",L11<>""),TRUE,FALSE) -> FALSE | S80: Si des dates ont été saisies
R124: =#REF!+#REF! -> 
Q128: =IF(SaisiTerminer,IF(DateChevauch1,R133,R134),R132) -> 00:00:00
R189: =#REF!-#REF! ->  | S189: Restant pour dépenses en capital

Sheet Détail du calcul
P1: Financement des crédits d’impôt remboursables à la RS&DE
P2: Exercice financier débutant du 1er juin 2014 au 1er décembre 2014
I3: DEMANDE DE GARANTIE / PRÊT
I4: Calculs relatifs aux crédits d’impôt RS&DE
C5: Québec – Taux applicable pour le calcul des crédits d’impôt à la RS&DE
J9: Date de début : | L9: =RCalculDateDebut1 -> 00:00:00 | O9: ='Année 2 - à compléter'!RCalculDateDebut1 -> 00:00:00
J10: Date de fin : | L10: =RCalculDateFin1 -> 00:00:00 | O10: ='Année 2 - à compléter'!RCalculDateFin1 -> 00:00:00
C12: Taux applicable aux dépenses admissibles n’excédant pas la limite de dépenses de 3 000 000 $ | L12: =IF('Année 1 - à compléter'!R15=2,0.14,IF(OR('Année 1 - à compléter'!L19="",'Année 1 - à compléter'!L19=0),0,IF(AND('Année 1 - à compléter'!L19>0,'Année 1 - à compléter'!R30>0,'Année 1 - à compléter'!S80),'Année 1 - à compléter'!R30,0))) -> 0 | O12: =IF('Année 2 - à compléter'!Q15=2,0.14,IF(OR('Année 2 - à compléter'!L19="",'Année 2 - à compléter'!L19=0),0,IF(AND('Année 2 - à compléter'!L19>0,'Année 2 - à compléter'!Q30>0,'Année 2 - à compléter'!R80),'Année 2 - à compléter'!Q30,0))) -> 0
J14: Taux applicable aux dépenses admissibles excédant la limite de dépense de 3 000 000 $ | L14: =0.14 -> 0.14 | O14: =0.14 -> 0.14
C17: Fédéral – Calcul de la limite des dépenses donnant droit aux crédits d’impôt à la RS&DE bonifiés
D19: Maximum | L19: =800000*10 -> 8000000 | N19: $ | O19: =800000*10 -> 8000000
D20: Moins le plus élevé de :
D21: 10 fois 500 000 $ ou
D22: 10 fois le revenu imposable de l’année précédente : | L22: =IF('Année 1 - à compléter'!SaisiTerminer,IF(10*RmontantImposableDeclarationFiscaleCanada1>500000*10,RmontantImposableDeclarationFiscaleCanada1*10,500000*10),0) -> 0 | N22: $ | O22: =IF('Année 2 - à compléter'!SaisiTerminer,IF(10*'Année 2 - à compléter'!RmontantImposableDeclarationFiscaleCanada1>500000*10,'Année 2 - à compléter'!RmontantImposableDeclarationFiscaleCanada1*10,500000*10),0) -> 0
D24: Limite de dépenses | L24: =IF('Année 1 - à compléter'!S80,IF((L19-L22)>0,(L19-L22),0.000001),0) -> 0 | N24: $ | O24: =IF('Année 2 - à compléter'!R80,IF((O19-O22)>0,(O19-O22),0.000001),0) -> 0
D26: Réajustement relatif au capital imposable | L26: =IF('Année 1 - à compléter'!S80,(1-'Année 1 - à compléter'!R67)*100+0.000001,0) -> 0 | M26: % | N26: % | O26: =IF('Année 2 - à compléter'!R80,(1-'Année 2 - à compléter'!Q67)*100+0.000001,0) -> 0 | P26: %
D27: (en fonction du capital imposable de l’année précédente)
D29: Limite de dépenses | L29: =IF('Année 1 - à compléter'!SaisiTerminer,IF(RONindicateurCorporationControlCanadienCanada1=2,0.000001,IF(L24*(1-'Année 1 - à compléter'!R67)>0,L24*(1-'Année 1 - à compléter'!R67),0.000001)),0) -> 0 | N29: $ | O29: =IF('Année 2 - à compléter'!SaisiTerminer,IF('Année 2 - à compléter'!RONindicateurCorporationControlCanadienCanada1=2,0.000001,IF(O24*(1-'Année 2 - à compléter'!Q67)>0,O24*(1-'Année 2 - à compléter'!Q67),0.000001)),0) -> 0
C32: Crédits de base RS&DE sur l’excédent des dépenses : | L32: =IF('Année 1 - à compléter'!S80=FALSE,"",IF(OR('Année 1 - à compléter'!S61,'Année 1 - à compléter'!R37=2),"Non remboursables","Remboursables à 40%")) ->  | N32: =IF('Année 1 - à compléter'!SaisiTerminer= FALSE," ( Remboursables ou non )","") -> ( Remboursables ou non ) | O32: =IF('Année 2 - à compléter'!R80=FALSE,"",IF(OR('Année 2 - à compléter'!R61,'Année 2 - à compléter'!Q37=2),"Non remboursables","Remboursables à 40%")) -> 
C33: Remboursables si le revenu imposable de l’année précédente est inférieur au plafond des affaires
C37: CALCUL DES CRÉDITS D'IMPÔT RS&DE À FINANCER (en $)
C39: Calcul des crédits d’impôt à la RS&DE au Québec à financer
C41: Calcul des dépenses courantes admissibles | L41: Exercice financier | O41: Exercice financier
J42: Date de début : | L42: =L9 -> 00:00:00 | O42: =O9 -> 00:00:00
J43: Date de fin : | L43: =L10 -> 00:00:00 | O43: =O10 -> 00:00:00
D45: ='Année 1 - à compléter'!C49 -> Salaires des employés, sauf employés déterminés (ligne 300 du T661) | L45: =Ligne300 -> 0 | O45: ='Année 2 - à compléter'!Ligne300 -> 0
D46: ='Année 1 - à compléter'!C50 -> Salaires des employés déterminés (ligne 305 du T661) | L46: =Ligne305 -> 0 | O46: ='Année 2 - à compléter'!L50 -> 0
D47: ='Année 1 - à compléter'!C51 -> Salaires des employés de soutien (aux fins du Québec) (ligne 43 du RD-222) | L47: ='Année 1 - à compléter'!L51 -> 0 | O47: ='Année 2 - à compléter'!L51 -> 0
D48: ='Année 1 - à compléter'!C53 -> Contrats (sous-traitants) sans lien de dépendance (ligne 340 du T661) | L48: =Ligne340*0.5 -> 0 | O48: ='Année 2 - à compléter'!Ligne340*0.5 -> 0
D49: ='Année 1 - à compléter'!C54 -> Contrats (sous-traitants) avec lien de dépendance (ligne 345 du T661) | L49: =Ligne345 -> 0 | O49: ='Année 2 - à compléter'!Ligne345 -> 0
D50: ='Année 1 - à compléter'!C57 -> Paiements faits à des tiers (ligne 370 du T661) | L50: ='Année 1 - à compléter'!L57*I51 -> 0 | O50: ='Année 2 - à compléter'!L57*I51 -> 0
D51: admissibles à : | I51: 0.5
D53: Moins :
D54: ='Année 1 - à compléter'!C62 -> Toute aide gouvernementale et non gouvernementale relative aux dépenses RS&DE | L54: =MoinAide -> 0 | O54: ='Année 2 - à compléter'!MoinAide -> 0
D55: ='Année 1 - à compléter'!C65 -> Réduction du salaire admissible lors d'un cumul de crédits d'impôt au Québec, ex. : CDAE | L55: ='Année 1 - à compléter'!L65 -> 0 | O55: ='Année 2 - à compléter'!L65 -> 0
D56: Ajustement | E56: Autres montants à soustraire :
D57: IQ | E57: Autres montants à ajouter :
D58: Dépenses nettes admissibles : | L58: =SUM(L45:L51)-SUM(L54:L56)+L57 -> 0 | O58: =SUM(O45:O51)-SUM(O54:O56)+O57 -> 0
L62: Exercice financier | O62: Exercice financier
C63: Calcul des crédits d’impôt RS&DE remboursables au Québec | J63: Date de début : | L63: =L42 -> 00:00:00 | O63: =O42 -> 00:00:00
J64: Date de fin : | L64: =L43 -> 00:00:00 | O64: =O43 -> 00:00:00
C66: Crédits année 1 et année 2 : | L66: =IF(L58>3000000,ROUND(3000000*'Détail du calcul'!L12,0),ROUND(L58*'Détail du calcul'!L12,0)) -> 0 | O66: =IF(O58>3000000,ROUND(3000000*'Détail du calcul'!O12,0),ROUND(O58*'Détail du calcul'!O12,0)) -> 0
C67: pour dépenses admissibles égales ou inférieures à la limite de dépenses
C68: Crédits année 1 et année 2 : | L68: =IF(L58>3000000,ROUND((L58-3000000)*L14,0),0) -> 0 | O68: =IF(O58>3000000,ROUND((O58-3000000)*O14,0),0) -> 0
C69: pour dépenses admissibles supérieures à la limite de dépenses
C71: =CONCATENATE('Année 1 - à compléter'!C68," :") -> Impôt à payer au Québec, déduction faite des acomptes provisionnels : | L71: ='Année 1 - à compléter'!L68 -> 0 | O71: ='Année 2 - à compléter'!L68 -> 0
D73: Ajustement | E73: Autres montants à soustraire :
D74: IQ | E74: Autres montants à ajouter :
C76: Crédits d’impôt à la RS&DE remboursables au Québec : | L76: =L66+L68-L71-L73+L74 -> 0 | O76: =O66+O68-O71-O73+O74 -> 0
C82: Calcul des crédits d’impôt à la RS&DE au fédéral à financer
C84: Calcul des dépenses courantes admissibles
J85: Date de début : | L85: =L63 -> 00:00:00 | O85: =O63 -> 00:00:00
J86: Date de fin : | L86: =L64 -> 00:00:00 | O86: =O64 -> 00:00:00
D88: ='Année 1 - à compléter'!C49 -> Salaires des employés, sauf employés déterminés (ligne 300 du T661) | L88: =Ligne300 -> 0 | O88: ='Année 2 - à compléter'!Ligne300 -> 0
D89: ='Année 1 - à compléter'!C50 -> Salaires des employés déterminés (ligne 305 du T661) | L89: ='Année 1 - à compléter'!L50 -> 0 | O89: ='Année 2 - à compléter'!L50 -> 0
D90: ='Année 1 - à compléter'!C52 -> Coûts des matériaux consommés et transformés (lignes 320 et 325 du T661) | L90: =Ligne320 -> 0 | O90: ='Année 2 - à compléter'!Ligne320 -> 0
D91: ='Année 1 - à compléter'!C53 -> Contrats (sous-traitants) sans lien de dépendance (ligne 340 du T661) | L91: =Ligne340*0.8 -> 0 | O91: ='Année 2 - à compléter'!Ligne340*0.8 -> 0 | S91: ANNÉE 1
D92: ='Année 1 - à compléter'!C55 -> Coûts de location du matériel utilisé avant le 1er janvier 2014 (Ligne 350 et 355 de la T661) | L92: =LocationMat -> 0 | O92: ='Année 2 - à compléter'!LocationMat -> 0
D93: ='Année 1 - à compléter'!C57 -> Paiements faits à des tiers (ligne 370 du T661) | L93: =Tiers*0.8 -> 0 | O93: ='Année 2 - à compléter'!Tiers*0.8 -> 0 | S93: Split year 12-13 | U93: Split year 13-14
D94: Calcul du montant de remplacement / frais généraux | L94: =IF(Proxy<>0,V99,IF(Proxy=0,V108,0)) -> 0 | O94: =IF('Année 2 - à compléter'!Proxy<>0,V119,IF('Année 2 - à compléter'!Proxy=0,V128,0)) -> 0 | S94: 2012-12-31 | U94: 2013-12-31
S95: Jours 2012 | T95: Jours 2013 | U95: Jours en 2013 | V95: Jours en 2014
D96: Dépenses courantes admissibles : | L96: =SUM(L88:L95) -> 0 | O96: =SUM(O88:O95) -> 0 | S96: =S94-RCalculDateDebut1+1 -> 41275 | T96: =RCalculDateFin1-'Détail du calcul'!S94 -> -41274 | U96: =U94-RCalculDateDebut1+1 -> 41640 | V96: =RCalculDateFin1-'Détail du calcul'!U94 -> -41639
D98: Moins : | E98: Aide gouvernementale et non gouvernementale | L98: =MoinAide -> 0 | O98: ='Année 2 - à compléter'!MoinAide -> 0
E99: Crédits d’impôt RS&DE du Québec | L99: =SUM(L66,L68) -> 0 | O99: =SUM(O66,O68) -> 0 | U99: Traditional | V99: =Proxy -> 0
D100: Ajustement | E100: Autres montants à soustraire :
D101: IQ | E101: Autres montants à ajouter : | U101: Bonification | V101: ='Année 1 - à compléter'!L63 -> 0
D102: Dépenses courantes admissibles : | L102: =IF(RONindicateurCorporationControlCanadienQuebec1=2,0.000001,L96+L101-(L98+L99+L100)) -> 0 | O102: =IF(RONindicateurCorporationControlCanadienQuebec1=2,0.000001,O96+O101-(O100+O98+O99)) -> 0
U104: Proxy 2012 - 2013 | V104: =IF(AND(RCalculDateDebut1>=DATE(2012,1,1),RCalculDateDebut1<DATE(2013,1,1)),'Détail du calcul'!W104,0) -> 0 | W104: =(0.65*((L88+L89-V101)*(S96/(S96+T96)))+(0.6*((L88+L89-V101)*(T96/(T96+S96))))) -> 0 | Y104: 2012 - 2013 | Z104: =IF(AND(RCalculDateDebut1>=DATE(2012,1,1),RCalculDateDebut1<DATE(2013,1,1)),'Détail du calcul'!AA104,0) -> 0 | AA104: =(0.2*((H137*0.4)*(S96/(S96+T96)))+(0.2*((H137*0.4)*(T96/(S96+T96))))) -> 0
C105: Calcul des dépenses en capital admissibles | U105: Proxy 2013-2014 | V105: =IF(AND(RCalculDateDebut1>=DATE(2013,1,1),RCalculDateDebut1<DATE(2014,1,1)),'Détail du calcul'!W105,0) -> 0 | W105: =(0.6*((L88+L89-V101)*(U96/(U96+V96)))+(0.55*((L88+L89-V101)*(V96/(U96+V96))))) -> 0 | Y105: 2013-2014 | Z105: =IF(AND(RCalculDateDebut1>=DATE(2013,1,1),RCalculDateDebut1<DATE(2014,1,1)),'Détail du calcul'!AA105,0) -> 0 | AA105: =(0.2*((H137*0.4)*(U96/(U96+V96)))+(0.15*((H137*0.4)*(V96/(U96+V96))))) -> 0
J106: Date de début : | L106: =L85 -> 00:00:00 | O106: =O85 -> 00:00:00 | U106: Proxy 2014 | V106: =IF(RCalculDateDebut1>=DATE(2014,1,1),W106,0) -> 0 | W106: =0.55*((L88+L89-V101)) -> 0 | Y106: Y2014 | Z106: =IF(RCalculDateDebut1>=DATE(2014,1,1),AA106,0) -> 0 | AA106: =0.15*((H137*0.4)) -> 0
J107: Date de fin : | L107: =L86 -> 00:00:00 | O107: =O86 -> 00:00:00
U108: Total Proxy | V108: =SUM(V104:V106) -> 0 | Y108: Total @40 Refund | Z108: =SUM(Z104:Z106) -> 0
D109: Dépenses en capital | L109: =Capital -> 0 | O109: ='Année 2 - à compléter'!Capital -> 0
D110: Moins : | E110: ='Année 2 - à compléter'!C64 -> Toute aide relative aux dépenses en capital RS&DE | L110: =AideCapital -> 0 | O110: ='Année 2 - à compléter'!AideCapital -> 0
D111: Ajustement | E111: Autres montants à soustraire : | S111: ANNÉE 2
D112: I.Q. | E112: Autres montants à ajouter :
D113: Dépenses en capital admissibles : | L113: =IF(RONindicateurCorporationControlCanadienCanada1=2,0.000001,L109+L112-(L110+L111)) -> 0 | O113: =IF(RONindicateurCorporationControlCanadienCanada1=2,0.000001,O109+O112-(O110+O111)) -> 0 | S113: Split year 12-13 | U113: Split year 13-14
S114: 2012-12-31 | U114: 2013-12-31
S115: Jours 2012 | T115: Jours 2013 | U115: Jours en 2013 | V115: Jours en 2014
S116: =S114-'Année 2 - à compléter'!RCalculDateDebut1+1 -> 41275 | T116: ='Année 2 - à compléter'!RCalculDateFin1-'Détail du calcul'!S114 -> -41274 | U116: =U114-'Année 2 - à compléter'!RCalculDateDebut1+1 -> 41640 | V116: ='Année 2 - à compléter'!RCalculDateFin1-'Détail du calcul'!U114 -> -41639
C118: Calcul des crédits d’impôt à la RS&DE bonifiés remboursables au fédéral, pour les dépenses inférieures à la limite de dépenses de la société
U119: Traditional | V119: ='Année 2 - à compléter'!Proxy -> 0
J120: Date de début : | L120: =L85 -> 00:00:00 | O120: =O85 -> 00:00:00
J121: Date de fin : | L121: =L86 -> 00:00:00 | O121: =O86 -> 00:00:00 | U121: Bonification | V121: ='Année 2 - à compléter'!L63 -> 0
D124: Limite de dépenses établie | L124: =IF('Année 1 - à compléter'!SaisiTerminer,IF(('Détail du calcul'!L29>0),'Détail du calcul'!L29,0),0) -> 0 | O124: =IF('Année 1 - à compléter'!SaisiTerminer,IF(('Détail du calcul'!O29>0),'Détail du calcul'!O29,0),0) -> 0 | U124: Proxy 2012 - 2013 | V124: =IF(AND('Année 2 - à compléter'!RCalculDateDebut1>=DATE(2012,1,1),'Année 2 - à compléter'!RCalculDateDebut1<DATE(2013,1,1)),'Détail du calcul'!W124,0) -> 0 | W124: =(0.65*((O88+O89-V121)*(S116/(S116+T116)))+(0.6*((O88+O89-V121)*(T116/(T116+S116))))) -> 0 | Y124: 2012 - 2013 | Z124: =IF(AND('Année 2 - à compléter'!RCalculDateDebut1>=DATE(2012,1,1),'Année 2 - à compléter'!RCalculDateDebut1<DATE(2013,1,1)),'Détail du calcul'!AA124,0) -> 0 | AA124: =(0.2*((I137*0.4)*(S116/(S116+T116)))+(0.2*((I410*0.4)*(T116/(S116+T116))))) -> 0
H125: Année 1 | I125: Année 2 | U125: Proxy 2013-2014 | V125: =IF(AND('Année 2 - à compléter'!RCalculDateDebut1>=DATE(2013,1,1),'Année 2 - à compléter'!RCalculDateDebut1<DATE(2014,1,1)),'Détail du calcul'!W125,0) -> 0 | W125: =(0.6*((O88+O89-V121)*(U116/(U116+V116)))+(0.55*((O88+O89-V121)*(V116/(U116+V116))))) -> 0 | Y125: 2013-2014 | Z125: =IF(AND('Année 2 - à compléter'!RCalculDateDebut1>=DATE(2013,1,1),'Année 2 - à compléter'!RCalculDateDebut1<DATE(2014,1,1)),'Détail du calcul'!AA125,0) -> 0 | AA125: =(0.2*((I137*0.4)*(U116/(U116+V116)))+(0.15*((I137*0.4)*(V116/(V116+U116))))) -> 0
D126: Dépenses courantes applicables | H126: =MIN(L29,L102) -> 0 | I126: =MIN(O29,O102) -> 0 | J126: X 35 % (crédit) X 100 % = | L126: =H126*0.35 -> 0 | O126: =I126*0.35 -> 0 | U126: Proxy 2014 | V126: =IF('Année 2 - à compléter'!RCalculDateDebut1>=DATE(2014,1,1),W126,0) -> 0 | W126: =0.55*((O88+O89-V121)) -> 0 | Y126: Y2014 | Z126: =IF('Année 2 - à compléter'!RCalculDateDebut1>=DATE(2014,1,1),AA126,0) -> 0 | AA126: =0.15*((I137*0.4)) -> 0
D127: Dépenses en capital applicables | H127: =MIN(L113,X132) -> 0 | I127: =MIN(O113,X133) -> 0 | J127: X 35 % (crédit) X 40 % = | L127: =ROUND(ROUND(H127*0.35,0)*0.4,0) -> 0 | O127: =ROUND(ROUND(I127*0.35,0)*0.4,0) -> 0
D128: Total : | H128: =SUM(H126:H127) -> 0 | I128: =SUM(I126:I127) -> 0 | J128: =IF('Année 1 - à compléter'!S80,"(max."&FIXED('Détail du calcul'!L29,0)&"$ )","( max. 3 000 000 $ )") -> ( max. 3 000 000 $ ) | U128: Total Proxy | V128: =SUM(V124:V126) -> 0 | Y128: Total @40 Refund | Z128: =SUM(Z124:Z126) -> 0
D130: Total des crédits d’impôt bonifiés remboursables : | L130: =SUM(L126:L127) -> 0 | O130: =SUM(O126:O127) -> 0
C132: Calcul des crédits à la RS&DE remboursables pour la partie excédant la limite des dépenses | W132: YEAR1 | X132: =L29-H126 -> 0
W133: YEAR 2 | X133: =O29-I126 -> 0
H134: Année 1 | I134: Année 2
D135: Dépenses courantes applicables | H135: =IF('Année 1 - à compléter'!S61=FALSE,IF(L102>'Détail du calcul'!L29,(L102-'Détail du calcul'!L29),0),0) -> 0 | I135: =IF('Année 2 - à compléter'!R61=FALSE,IF(O102>'Détail du calcul'!O29,(O102-'Détail du calcul'!O29),0),0) -> 0
D136: Dépenses en capital applicables | H136: =IF('Année 1 - à compléter'!S61=FALSE,L113-H127,0) -> 0 | I136: =IF('Année 2 - à compléter'!R61=FALSE,O113-I127,0) -> 0
D137: Total : | H137: =SUM(H135:H136) -> 0 | I137: =SUM(I135:I136) -> 0 | J137: X 15 % (crédit) X 40 % = | L137: =Z108 -> 0 | O137: =Z128 -> 0
C139: =CONCATENATE('Année 1 - à compléter'!C67, " :") -> Impôt fédéral à payer, déduction faite des acomptes provisionnels : | L139: ='Année 1 - à compléter'!L67 -> 0 | O139: ='Année 2 - à compléter'!L67 -> 0
D141: Ajustement | E141: Autres montants à soustraire :
D142: IQ | E142: Autres montants à ajouter :
C144: Crédits d’impôt à la RS&DE remboursables au fédéral : | L144: =IF('Année 1 - à compléter'!SaisiTerminer,IF(RONindicateurCorporationControlCanadienCanada1=2,0.000001,IF(ROUND(L130+L137-L139-L141+L142,0)<=0,0.000001,ROUND(L130+L137-L139-L141+L142,0))),"") ->  | O144: =IF('Année 2 - à compléter'!SaisiTerminer,IF(RONindicateurCorporationControlCanadienCanada1=2,0.000001,IF(ROUND(O130+O137-O139-O141+O142,0)<=0,0.000001,ROUND(O130+O137-O139-O141+O142,0))),"") -> 

Sheet Année 2 - à remplir (hidden)
H1: Financement des crédits d'impôt remboursables à la à la R-D
A3: DEMANDE DE GARANTIE / PRÊT
A4: Calculs relatifs aux crédits d'impôt à financer (année 2)
C5: =#REF! ->  | K5: =#REF! ->  | L5: =#REF! ->  | O5: =#REF! ->  | P5: =#REF! -> 
K6: =IF(RNumeroConfirmationDemande<>"","Nº. Demande","") ->  | L6: =ANumeroConfirmationDemande ->  | O6: =IF(RDateTransmissionDemande<>"","transmis le","") ->  | P6: =ADateTransmissionDemande ->  | U6: Taux applicables (Québec)
B7: ADMISSIBILITÉ AUX CRÉDITS D'IMPÔT À LA R-D REMBOURSABLES | R7: =IF(AND(MONTH(DATE(YEAR(RCalculDateDebut2),2,29)) =2,MONTH(RCalculDateDebut2)<3),TRUE,FALSE) -> FALSE | U7: aux dépenses admissibles nettes n'excédant pas 2 M$
L8: (aaaa-mm-jj) | R8: =IF(AND(MONTH(DATE(YEAR(RCalculDateFin2),2,29)) =2,MONTH(RCalculDateFin2)>2),TRUE,FALSE) -> FALSE | U8: (en fonction des actifs indiqués dans les états financiers)
C9: Deuxième exercice à financer : | J9: Date de début : | L9: 2013-01-01 | N9: =" Attention :" -> Attention : | R9: =RCalculDateFin2-RCalculDateDebut2 -> 364 | S9: =IF(OR(R7=TRUE,R8=TRUE),365,364) -> 364 | U9: Dépenses admissibles nettes
C10: (débutant après le 4 décembre 2006) | U10: (à titre indicatif )
J11: Date de fin : | L11: 2013-12-31 | N11: =" ne représente pas 12 mois" -> ne représente pas 12 mois | V11: 1 | W11: 0.375
V12: 25000000 | W12: 0.375
B13: 2.1 | C13: Admissibilité aux crédits d'impôt à la R-D remboursables (Québec) | V13: 50000000 | W13: 0.375
V14: 55000000 | W14: 0.335
J15: L'entreprise requérante est une corporation à contrôle canadien. | R15: 1 | V15: 60000000 | W15: 0.295
V16: 65000000 | W16: 0.255
V17: 70000000 | W17: 0.215
V18: 75000000 | W18: 0.175
C19: Actif aux états financiers (année précédant l'exercice financier) : | N19: $ | R19: =ROUND(0.375-((MAX(25000000,(MIN(50000000,L19)))-25000000)*0.2)/25000000,4) -> 0.175
H21: en date du :
D22: S'il s'agit d'une entreprise en démarrage, inscrire 1 $ | L22: =L8 -> (aaaa-mm-jj)
C24: Taux applicables pour le calcul des crédits d'impôt à la R-D sur les :
R25: =RCalculDateFin1-DATE(2008,3,13) -> -39520
L26: =IF(R15=2,0.175,IF(OR(L19="",L19=0),0,IF(AND(L19>0,R19>0,SaisiTerminer),R19,0))) -> 0 | N26: jusqu'au 4 décembre 2006 | R26: =IF(SaisiTerminer,IF(RCalculDateFin1>DATE(2008,3,13),IF(RCalculDateFin1>DATE(2009,3,13),3000000,ROUND(2000000+((RCalculDateFin1-DATE(2008,3,13))*(1000000/365)),0)),2000000),3000000) -> 2000000
C28: ="Taux pour dépenses admissibles nettes n'excédant pas "&FIXED(R26,0)&" $ :" -> Taux pour dépenses admissibles nettes n'excédant pas 2 000 000 $ : | L28: =IF(R15=2,0.175,IF(OR(L19="",L19=0),0,IF(AND(L19>0,R30>0,SaisiTerminer),R30,0))) -> 0 | N28: après le 4 décembre 2006
J30: ="Taux pour dépenses admissibles nettes excédant "&FIXED(R26,0)&" $ :" -> Taux pour dépenses admissibles nettes excédant 2 000 000 $ : | L30: =0.175 -> 0.175 | R30: =ROUND(0.375-((MAX(50000000,(MIN(75000000,L19)))-50000000)*0.4)/50000000,4) -> 0.175
B34: 2.2 | C34: Admissibilité aux crédits d'impôt à la RS&DE remboursables (Canada)
C37: La corporation est une société privée sous contrôle canadien, | R37: 1
C38: dont le revenu imposable et le capital imposable pour l'année précédant | R38: =IF(SaisiTerminer,IF(RCalculDateFin1>DATE(2008,2,25),IF(RCalculDateFin1>DATE(2009,2,25),IF(RCalculDateFin1>DATE(2009,12,31),IF(RCalculDateFin1>DATE(2010,12,31),800000,700000+((RCalculDateFin1-DATE(2009,12,31))*(100000/365))),700000),600000+((RCalculDateFin1-DATE(2008,2,25))*(100000/366))),600000),800000) -> 600000
C39: ="l'exercice financier étaient respectivement inférieurs à "&FIXED(R38,0)&" $ et "&FIXED(R39,0)&" $" -> l'exercice financier étaient respectivement inférieurs à 600 000 $ et 15 000 000 $ | R39: =IF(SaisiTerminer,IF(RCalculDateFin1>DATE(2008,2,25),IF(RCalculDateFin1>DATE(2009,2,25),50000000,15000000+((RCalculDateFin1-DATE(2008,2,25))*(35000000/366))),15000000),50000000) -> 15000000
C40: (y compris les corporations associées, s'il y a lieu).
R41: =IF(SaisiTerminer,IF(RCalculDateFin1>DATE(2009,12,31),IF(RCalculDateFin1>DATE(2010,12,31),500000,400000+((RCalculDateFin1-DATE(2009,12,31))*(100000/365))),400000),500000) -> 400000
J42: Revenu imposable selon la déclaration de revenus | K42: : | L42: 500000 | N42: $ | S42: =IF(OR(AND(L42<>"",L42<>1,L42<>0),AND(L19<>"",L19<>1,L19<>0)),TRUE,FALSE) -> TRUE | T42: Revenus imposables saisis (Année précédente existente)
J43: (année précédant l'exercice à financer)
J45: Capital imposable | K45: : | L45: 500 | N45: $
J46: (année précédant l'exercice à financer)
J48: En date du | K48: : | L48: =IF(R37=2,"",IF(L21="","",L21)) -> 
L49: =L8 -> (aaaa-mm-jj)
C52: Limite des dépenses donnant droit aux crédits à la RS&DE bonifiés
D55: Maximum | L55: =R38*10 -> 6000000 | N55: $
D56: Moins le plus élevé de :
D57: =" 10 fois " & FIXED(R41,0) & " $ ou" -> 10 fois 400 000 $ ou
D58: 10 fois le revenu imposable de l'année précédente: | L58: =IF(SaisiTerminer,IF(10*L42>R41*10,L42*10,R41*10),0) -> 5000000 | N58: $
D60: Limite de dépenses | L60: =IF(SaisiTerminer,IF((L55-L58)>0,(L55-L58),0.000001),0) -> 1000000 | N60: $ | S60: =IF(AND(L42<R41,L45<10000000),FALSE,TRUE) -> TRUE | T60: Si un plafond est applicable
D62: Réajustement relatif au capital imposable | L62: =IF(SaisiTerminer,(1-$R66)*100+0.000001,0) -> 100.000001 | N62: %
D63: (en fonction du capital imposable de l'année précédente)
D65: Limite de dépenses nettes | L65: =IF(SaisiTerminer,IF(R37=2,0.000001,IF(L60*(1-$R66)>0,L60*(1-$R66),0.000001)),0) -> 1000000 | N65: $ | R65: =IF(($L45-10000000)>0,$L45-10000000,0) -> 0
R66: =ROUND($R65/(R39-10000000),4) -> 0
C68: Crédits de base RS&DE sur l'excédent des dépenses : | L68: =IF(SaisiTerminer=FALSE,"",IF(OR(PlafondApplicable,R37=2),"Non remboursables","Remboursables à 40%")) -> Non remboursables | N68: =IF(SaisiTerminer = FALSE," ( Remboursables ou non )","") -> 
C69: =" (Remboursables si le revenu imposable de l'année précédente est < " & FIXED(R41,0) & " $ et" -> (Remboursables si le revenu imposable de l'année précédente est < 400 000 $ et
C70: que le capital imposable de l'année précédente est < 10 000 000 $ )
B76: 2.3 COÛT DU PROJET À LA R-D (en $)
J78: =IF(OR(SaisiTerminer=FALSE,DateChevauch2)," Jusqu'au 4 décembre 2006","Exercice financier") -> Exercice financier | L78: Exercice financier | P78: Total
I79: Date de début : | J79: =IF(SaisiTerminer,L9,"") -> 2013-01-01 | L79: =IF(AND(DateChevauch2,SaisiTerminer),DATE(2006,12,5),IF(Avant200612042=FALSE,L9,"")) -> 2013-01-01 | P79: =IF(SaisiTerminer,L9,"") -> 2013-01-01 | S79: =IF(AND(L9<>"",L11<>""),TRUE,FALSE) -> TRUE | T79: Si des dates ont été saisies
I80: Date de fin : | J80: =IF(AND(DateChevauch2,SaisiTerminer,Avant200612042<>FALSE),DATE(2006,12,4),IF(L11="","",L11)) -> 2013-12-31 | L80: =IF(AND(DateChevauch2,SaisiTerminer),L11,IF(Avant200612042=FALSE,L11,"")) -> 2013-12-31 | P80: =IF(L11="","",L11) -> 2013-12-31 | S80: =AND(L9<DATE(2006,12,4),L11>DATE(2006,12,4)) -> FALSE | T80: Si les dates chevauchent le 4 décembre 2006
I81: (nombre de mois) | J81: =IF(OR(ISERROR(+(J80-J79)/30.42),Avant200612042=FALSE),"",+(J80-J79)/30.42) ->  | L81: =IF(ISERROR(+(L80-L79)/30.42),"",+(L80-L79)/30.42) -> 11.96581197 | P81: =SUM(J81,L81) -> 11.96581197 | S81: =IF(SaisiTerminer,IF(L9<DATE(2006,12,4),TRUE,FALSE),"") -> FALSE | T81: Si la date de début saisie est avant le 4 décembre 2006
C83: Salaires - personnes désignées | P83: =SUM(J83,L83) -> 0 | T83: Nouveau plafond des affaires appliquable (date début à partir du 2 jan 2007)
C84: Autres salaires | P84: 0
C85: Avantages sociaux imposables | P85: =SUM(J85,L85) -> 0
C86: Avantages sociaux non imposables | P86: 0
C87: Provision pour salaires et avantages sociaux | P87: 0
C88: Sous-traitance (honoraires) | P88: 0
C89: Sous-traitance - personnes liées (dépenses transférées) | L89: 1000 | P89: 1000
C90: Sous-traitance - centre de recherche reconnu | P90: 0
C91: Matières, fournitures et prototypes | P91: =SUM(J91,L91) -> 0
C92: Autres dépenses admissibles (fédéral seulement) | P92: 0
C93: Autres dépenses d'exploitation ou règle du 65 % | P93: 0
C94: Dépenses en capital | P94: 0
C95: Autres dépenses non admissibles aux crédits à la R-D | P95: 0
I96: Total : | J96: =SUM(J83:J95) -> 0 | L96: =SUM(L83:L95) -> 1000 | P96: =SUM(P83:P95) -> 1000
B103: CALCUL DES CRÉDITS À FINANCER (en $)
B104: 2.4 | C104: Calcul des crédits d'impôt au Québec à financer
C106: Calcul des dépenses courantes nettes admissibles | J106: =IF(OR(SaisiTerminer=FALSE,DateChevauch2)," Jusqu'au 4 décembre 2006","Exercice financier") -> Exercice financier | L106: Exercice financier | P106: Total
I107: Date de début : | J107: =J79 -> 2013-01-01 | L107: =L79 -> 2013-01-01 | P107: =IF(SaisiTerminer,L9,"") -> 2013-01-01
I108: Date de fin : | J108: =J80 -> 2013-12-31 | L108: =L80 -> 2013-12-31 | P108: =IF(L11="","",L11) -> 2013-12-31
D110: Salaires - personnes désignées | J110: =J83 -> 0 | L110: =L83 -> 0 | P110: =SUM(J110,L110) -> 0
D111: Autres salaires | J111: =J84 -> 0 | L111: =L84 -> 0 | P111: 0
D112: Avantages sociaux imposables | J112: =J85 -> 0 | L112: =L85 -> 0 | P112: 0
D113: Provision pour salaires et avantages sociaux | J113: =J87 -> 0 | L113: =L87 -> 0 | P113: 0
D114: Sous-traitance (honoraires) (admissibles à 50 %) | J114: =ROUND(J88*50%,0) -> 0 | L114: =ROUND(L88*50%,0) -> 0 | P114: 0
D115: Sous-traitance - personnes liées (admissibles à 100 %) | J115: =J89 -> 0 | L115: =L89 -> 1000 | P115: 1000
D116: Sous-traitance - centre de recherche reconnu | J116: =ROUND(J90*RpourcentageSousTraitanceRecherche2,0) -> 0 | L116: =ROUND(L90*RpourcentageSousTraitanceRecherche2,0) -> 0 | P116: 0
D117: admissibles à : | I117: 0.5
D118: Moins: | E118: dépenses refusées | P118: 0
E119: Contribution(s) fin. non-remboursable(s) | P119: 0
D120: Dépenses nettes admissibles : | J120: =SUM(J110:J117)-SUM(J118:J119) -> 0 | L120: =SUM(L110:L117)-SUM(L118:L119) -> 1000 | P120: =SUM(J120,L120) -> 1000 | S120: =J120+L120 -> 1000
P123: Total
J124: =IF(OR(SaisiTerminer=FALSE,DateChevauch2)," Jusqu'au 4 décembre 2006","Exercice financier") -> Exercice financier | L124: Exercice financier | R124: =IF(SaisiTerminer,IF(DateChevauch1,S129,S130),S128) -> 
C125: Calcul des crédits d'impôt remboursables | I125: Date de début : | J125: =J79 -> 2013-01-01 | L125: =L79 -> 2013-01-01 | P125: =IF(SaisiTerminer,L9,"") -> 2013-01-01
I126: Date de fin : | J126: =J80 -> 2013-12-31 | L126: =L80 -> 2013-12-31 | P126: =IF(L11="","",L11) -> 2013-12-31
C128: =IF(SaisiTerminer,IF(DateChevauch2,IF(L26=L28,S130,S129),S130),S128) -> Crédits à 0,00% | J128: =IF(DateChevauch2,IF(TotalAnnuel>2000000,IF(J120>2000000,ROUND(2000000*L26,0),ROUND(J120*L26,0)),ROUND(J120*L26,0)),IF(J120>2000000,ROUND(2000000*L26,0),ROUND(J120*L26,0))) -> 0 | L128: =IF(DateChevauch2,IF(TotalAnnuel>R26,IF(J120>R26,0,ROUND((R26-J120)*L28,0)),ROUND(L120*L28,0)),IF(L120>R26,ROUND(R26*L28,0),ROUND(L120*L28,0))) -> 0 | P128: =SUM(J128,L128) -> 0 | S128: Crédits à 37,50 % (max.)
C129: =" pour dépenses admissibles < = "&FIXED(R26,0)&" $ :" -> pour dépenses admissibles < = 2 000 000 $ : | S129: =CONCATENATE("Crédits à ",TEXT(L26,"0,00%")," ou à ",TEXT(L28,"0,00%")) -> Crédits à 0,00% ou à 0,00%
C130: =CONCATENATE("Crédits à ",TEXT(L30*100,"0,00")," %") -> Crédits à 17,50 % | J130: =IF(DateChevauch2,IF(TotalAnnuel>2000000,IF(J120>2000000,ROUND((J120-2000000)*L30,0),0),0),IF(J120>2000000,ROUND((J120-2000000)*L30,0),0)) -> 0 | L130: =IF(DateChevauch2,IF(TotalAnnuel>R26,IF(J120>R26,ROUND(L120*L30,0),ROUND((TotalAnnuel-R26)*L30,0)),0),IF(L120>R26,ROUND((L120-R26)*L30,0),0)) -> 0 | P130: =SUM(J130,L130) -> 0 | S130: =CONCATENATE("Crédits à ",TEXT(L28,"0,00%")) -> Crédits à 0,00%
C131: =" pour dépenses admissibles > "&FIXED(R26,0)&" $ :" -> pour dépenses admissibles > 2 000 000 $ :
C132: Moins la taxe sur le capital (net) | P132: =SUM(J132,L132) -> 0
C134: Crédits d'impôt remboursables au Québec pour la R-D : | J134: =SUM(J128:J130)-J132 -> 0 | L134: =SUM(L128:L130)-L132 -> 0 | P134: =SUM(J134,L134) -> 0
B140: 2.5 | C140: Calcul des crédits d'impôt au Canada à financer
C142: Calcul des dépenses courantes nettes admissibles | P142: Total
N143: Date de début : | P143: =IF(SaisiTerminer,L9,"") -> 2013-01-01
N144: Date de fin : | P144: =IF($L$11="","",$L$11) -> 2013-12-31
D146: =C83 -> Salaires - personnes désignées | P146: =P83 -> 0
D147: =C84 -> Autres salaires | P147: 0
D148: =C85 -> Avantages sociaux imposables | P148: 0
D149: =C86 -> Avantages sociaux non imposables | P149: 0
D150: =C87 -> Provision pour salaires et avantages sociaux | P150: 0
D151: =CONCATENATE(C88, " (admissibles à 100 %)") -> Sous-traitance (honoraires) (admissibles à 100 %) | P151: 0
D152: =CONCATENATE(C89," (admissibles à 100 %)") -> Sous-traitance - personnes liées (dépenses transférées) (admissibles à 100 %) | P152: =P89 -> 1000
D153: =CONCATENATE(C90," (admissibles à 100 %)") -> Sous-traitance - centre de recherche reconnu (admissibles à 100 %) | P153: =P90 -> 0
D154: =C91 -> Matières, fournitures et prototypes | P154: =P91 -> 0
D155: =C92 -> Autres dépenses admissibles (fédéral seulement) | P155: =P92 -> 0
D156: =C93 -> Autres dépenses d'exploitation ou règle du 65 % | P156: =P93 -> 0
D157: Dépenses courantes admissibles : | P157: =SUM(P146:P156) -> 1000
D159: Moins : | E159: dépenses refusées
E160: Contribution(s) financière(s) non remboursable(s)
E161: crédits du Québec (seulement ceux à la R-D) | P161: =SUM(P128,P130) -> 0
D163: Dépenses courantes nettes admissibles : | P163: =IF(R37=2,0.000001,P157-(P159+P160+P161)) -> 1000
C166: Calcul des dépenses en capital nettes admissibles | P166: Total
N167: Date de début : | P167: =IF(SaisiTerminer,L9,"") -> 2013-01-01
N168: Date de fin : | P168: =IF($L$11="","",$L$11) -> 2013-12-31
D170: Dépenses en capital | P170: =P94 -> 0
D171: Moins : | E171: dépenses refusées
E172: Contribution(s) financière(s) non remboursable(s)
D173: Dépenses en capital nettes admissibles : | P173: =IF(R37=2,0.000001,P170-(P171+P172)) -> 0
P178: Total
N179: Date de début : | P179: =IF(SaisiTerminer,L9,"") -> 2013-01-01
N180: Date de fin : | P180: =IF($L$11="","",$L$11) -> 2013-12-31
C181: =IF(SaisiTerminer=FALSE,"Calcul des crédits d'impôt à la RS&DE bonifiés remboursables, pour les dépenses inférieures ou égales à 3 000 000 $",CONCATENATE("Calcul des crédits d'impôt à la RS&DE bonifiés remboursables, pour les dépenses inférieures à la limite nette de ",FIXED(L65,0)," $.")) -> Calcul des crédits d'impôt à la RS&DE bonifiés remboursables, pour les dépenses inférieures à la limite nette de 1 000 000 $.
C182: =IF(RevenusImposablesSaisis=FALSE,"(ou inférieures à la limite de dépenses nettes établie)","") -> 
D183: Limite de dépenses nettes établie | P183: =IF(SaisiTerminer,IF((L65>0),L65,0),0) -> 1000000
D185: Dépenses courantes applicables | J185: =MIN(L65,P163) -> 1000 | L185: X 35 % (crédit) X 100 % (remboursement) = | P185: =J185*0.35 -> 350 | S185: =L65-J185 -> 999000 | T185: Restant pour dépenses en capital
D186: Dépenses en capital applicables | J186: =MIN(P173,S185) -> 0 | L186: X 35 % (crédit) X 40 % (remboursement) = | P186: =ROUND(ROUND(J186*0.35,0)*0.4,0) -> 0
D187: Total : | J187: =SUM(J185:K186) -> 1000 | L187: =IF(SaisiTerminer,"( max. "&FIXED(L65,0)&" $ )","( max. 3 000 000 $ )") -> ( max. 1 000 000 $ )
D189: Total des crédits d'impôt bonifiés remboursables | P189: =SUM(P185:P186) -> 350
C191: =IF(SaisiTerminer=FALSE,"Calcul des crédits de base à la RS&DE remboursables, pour la partie des dépenses excédant 3 000 000 $ :", "Calcul des crédits de base à la RS&DE remboursables, pour la partie des dépenses excédant "&FIXED(L65,0)&" $ :") -> Calcul des crédits de base à la RS&DE remboursables, pour la partie des dépenses excédant 1 000 000 $ :
C192: ="( Si revenu imposable année précédente < " & FIXED(R41,0) & " $ et capital imposable année précédente < 10 000 000 $ )" -> ( Si revenu imposable année précédente < 400 000 $ et capital imposable année précédente < 10 000 000 $ )
D194: Dépenses courantes applicables | J194: =IF(PlafondApplicable=FALSE,IF(P163>L65,(P163-L65),0),0) -> 0
D195: Dépenses en capital applicables | J195: =IF(PlafondApplicable=FALSE,P173-J186,0) -> 0
D196: Total : | J196: =SUM(J194:K195) -> 0 | L196: X 20 % (crédit) X 40 % (remboursement) = | P196: =J196*0.2*0.4 -> 0
C198: Moins l'impôt à payer
C200: Crédits d'impôt remboursables au Canada pour la à la RS&DE : | P200: =IF(SaisiTerminer,IF(R37=2,0.000001,IF(ROUND(P189+P196-P198,0)<=0,0.000001,ROUND(P189+P196-P198,0))),"") -> 350

Sheet Poste (hidden)
A2: Président
A3: Vice-président Finance
A4: Vice-président R&D
A5: Contrôleur
A6: Actionnaire
A7: Autres (Précisez)
